[Event "Titled Tuesday Blitz August 08 Early 2023"]
[White "Sokolovsky, Yahli"]
[Black "Kazakouski, Valery"]
[WhiteFideId "2820242"]
[BlackFideId "13507443"]
[WhiteElo "2669"]
[BlackElo "2895"]
[Result "1/2-1/2"]
[Round "3"]
[TimeControl "180+1"]
[Date "2023.08.08"]
[WhiteClock "0:00:08"]
[BlackClock "0:00:09"]
[Board "28"]

1. b3 {[%clk 0:03:00]}  Nf6 {[%clk 0:02:56]} 2. Bb2 {[%clk 0:03:01]}  e6 {[%clk 0:02:57]} 3. e3 {[%clk 0:03:02]}  d5 {[%clk 0:02:57]} 4. Nf3 {[%clk 0:03:02]}  b6 {[%clk 0:02:56]} 5. d4 {[%clk 0:03:03]}  Bd6 {[%clk 0:02:55]} 6. Nbd2 {[%clk 0:03:00]}  O-O {[%clk 0:02:55]} 7. Bd3 {[%clk 0:03:01]}  Ba6 {[%clk 0:02:55]} 8. O-O {[%clk 0:03:00]}  Bxd3 {[%clk 0:02:54]} 9. cxd3 {[%clk 0:03:01]}  a5 {[%clk 0:02:45]} 10. a3 {[%clk 0:02:51]}  Na6 {[%clk 0:02:44]} 11. Ne5 {[%clk 0:02:49]}  Nd7 {[%clk 0:02:38]} 12. Nc6 {[%clk 0:02:31]}  Qe8 {[%clk 0:02:38]} 13. f4 {[%clk 0:02:31]}  f6 {[%clk 0:02:34]} 14. Rc1 {[%clk 0:02:30]}  Nab8 {[%clk 0:02:28]} 15. Nxb8 {[%clk 0:02:28]}  Nxb8 {[%clk 0:02:27]} 16. e4 {[%clk 0:02:23]}  Na6 {[%clk 0:01:54]} 17. e5 {[%clk 0:02:02]}  fxe5 {[%clk 0:01:55]} 18. dxe5 {[%clk 0:02:00]}  Be7 {[%clk 0:01:54]} 19. Qg4 {[%clk 0:01:50]}  Qg6 {[%clk 0:01:54]} 20. Qxg6 {[%clk 0:01:45]}  hxg6 {[%clk 0:01:55]} 21. Rc6 {[%clk 0:01:36]}  Kf7 {[%clk 0:01:49]} 22. Nf3 {[%clk 0:01:25]}  Rac8 {[%clk 0:01:36]} 23. Rfc1 {[%clk 0:01:12]}  Nc5 {[%clk 0:00:49]} 24. d4 {[%clk 0:00:44]}  Nd3 {[%clk 0:00:49]} 25. R1c2 {[%clk 0:00:44]}  Bd8 {[%clk 0:00:43]} 26. g3 {[%clk 0:00:31]}  Nxb2 {[%clk 0:00:21]} 27. Rxb2 {[%clk 0:00:32]}  Re8 {[%clk 0:00:22]} 28. Rbc2 {[%clk 0:00:30]}  Ke7 {[%clk 0:00:07]} 29. Rxb6 {[%clk 0:00:18]}  Kd7 {[%clk 0:00:07]} 30. Rb5 {[%clk 0:00:14]}  c6 {[%clk 0:00:06]} 31. Rb7+ {[%clk 0:00:14]}  Bc7 {[%clk 0:00:07]} 32. Kf2 {[%clk 0:00:08]}  Rb8 {[%clk 0:00:07]} 33. Rxb8 {[%clk 0:00:08]}  Rxb8 {[%clk 0:00:08]} 34. Rc3 {[%clk 0:00:07]}  Bd8 {[%clk 0:00:08]} 35. Nd2 {[%clk 0:00:05]}  Be7 {[%clk 0:00:08]} 36. Nb1 {[%clk 0:00:05]}  Rb5 {[%clk 0:00:08]} 37. Ke3 {[%clk 0:00:05]}  c5 {[%clk 0:00:07]} 38. h4 {[%clk 0:00:03]}  a4 {[%clk 0:00:05]} 39. Nd2 {[%clk 0:00:03]}  cxd4+ {[%clk 0:00:05]} 40. Kxd4 {[%clk 0:00:03]}  Bxa3 {[%clk 0:00:05]} 41. bxa4 {[%clk 0:00:03]}  Rb4+ {[%clk 0:00:05]} 42. Kd3 {[%clk 0:00:03]}  Rxa4 {[%clk 0:00:05]} 43. Rb3 {[%clk 0:00:03]}  Bb4 {[%clk 0:00:05]} 44. Nf3 {[%clk 0:00:03]}  Bc5 {[%clk 0:00:04]} 45. Rb7+ {[%clk 0:00:03]}  Kc6 {[%clk 0:00:05]} 46. Rxg7 {[%clk 0:00:03]}  Ra3+ {[%clk 0:00:06]} 47. Ke2 {[%clk 0:00:03]}  Re3+ {[%clk 0:00:06]} 48. Kf2 {[%clk 0:00:04]}  Rxe5+ {[%clk 0:00:06]} 49. Kg2 {[%clk 0:00:05]}  Re2+ {[%clk 0:00:07]} 50. Kh3 {[%clk 0:00:06]}  d4 {[%clk 0:00:07]} 51. Ne5+ {[%clk 0:00:06]}  Kd5 {[%clk 0:00:07]} 52. Rd7+ {[%clk 0:00:06]}  Ke4 {[%clk 0:00:08]} 53. Nxg6 {[%clk 0:00:05]}  d3 {[%clk 0:00:08]} 54. Ne5 {[%clk 0:00:05]}  d2 {[%clk 0:00:08]} 55. Nc4 {[%clk 0:00:06]}  Bd4 {[%clk 0:00:08]} 56. Nxd2+ {[%clk 0:00:05]}  Rxd2 {[%clk 0:00:09]} 57. h5 {[%clk 0:00:05]}  Ra2 {[%clk 0:00:09]} 58. h6 {[%clk 0:00:06]}  Ra8 {[%clk 0:00:08]} 59. h7 {[%clk 0:00:05]}  Bf6 {[%clk 0:00:05]} 60. Kg4 {[%clk 0:00:06]}  Ra5 {[%clk 0:00:03]} 61. Rf7 {[%clk 0:00:04]}  Bd4 {[%clk 0:00:03]} 62. Rf8 {[%clk 0:00:05]}  Ra7 {[%clk 0:00:03]} 63. h8=Q {[%clk 0:00:05]}  Bxh8 {[%clk 0:00:03]} 64. Rxh8 {[%clk 0:00:05]}  Rg7+ {[%clk 0:00:04]} 65. Kh4 {[%clk 0:00:04]}  Kf3 {[%clk 0:00:04]} 66. Re8 {[%clk 0:00:04]}  Rg4+ {[%clk 0:00:03]} 67. Kh5 {[%clk 0:00:04]}  Kxg3 {[%clk 0:00:02]} 68. Rxe6 {[%clk 0:00:04]}  Kxf4 {[%clk 0:00:02]} 69. Rf6+ {[%clk 0:00:03]}  Kg3 {[%clk 0:00:03]} 70. Ra6 {[%clk 0:00:04]}  Rh4+ {[%clk 0:00:03]} 71. Kg5 {[%clk 0:00:05]}  Rd4 {[%clk 0:00:04]} 72. Ra3+ {[%clk 0:00:05]}  Kf2 {[%clk 0:00:04]} 73. Kf5 {[%clk 0:00:05]}  Rb4 {[%clk 0:00:05]} 74. Ke5 {[%clk 0:00:06]}  Rh4 {[%clk 0:00:05]} 75. Rb3 {[%clk 0:00:06]}  Ke2 {[%clk 0:00:06]} 76. Ra3 {[%clk 0:00:06]}  Kd2 {[%clk 0:00:06]} 77. Kf5 {[%clk 0:00:07]}  Kc2 {[%clk 0:00:06]} 78. Kg5 {[%clk 0:00:07]}  Rb4 {[%clk 0:00:07]} 79. Kf5 {[%clk 0:00:07]}  Kb2 {[%clk 0:00:08]} 80. Rh3 {[%clk 0:00:07]}  Rb5+ {[%clk 0:00:09]} 81. Ke4 {[%clk 0:00:08]}  Rb4+ {[%clk 0:00:09]} 82. Kd5 {[%clk 0:00:08]}  Rb3 {[%clk 0:00:09]} 83. Rxb3+ {[%clk 0:00:08]}  Kxb3 {[%clk 0:00:09]} 1/2-1/2


[Site "https://www.chess.com"]

[Event "Titled Tuesday Blitz August 08 Early 2023"]
[White "Weetik, Vjacheslav"]
[Black "Aravindh, Chithambaram VR."]
[WhiteFideId "4153472"]
[BlackFideId "5072786"]
[WhiteElo "2668"]
[BlackElo "2891"]
[Result "0-1"]
[Round "3"]
[TimeControl "180+1"]
[Date "2023.08.08"]
[WhiteClock "0:00:00"]
[BlackClock "0:00:01"]
[Board "29"]

1. d4 {[%clk 0:02:59]}  Nf6 {[%clk 0:02:59]} 2. c4 {[%clk 0:02:59]}  b6 {[%clk 0:02:59]} 3. f3 {[%clk 0:02:59]}  e6 {[%clk 0:02:36]} 4. e4 {[%clk 0:02:58]}  d5 {[%clk 0:02:36]} 5. cxd5 {[%clk 0:02:51]}  exd5 {[%clk 0:02:36]} 6. e5 {[%clk 0:02:50]}  Nh5 {[%clk 0:02:27]} 7. Be3 {[%clk 0:02:32]}  c5 {[%clk 0:01:43]} 8. Nc3 {[%clk 0:02:00]}  cxd4 {[%clk 0:01:36]} 9. Bxd4 {[%clk 0:01:37]}  Nc6 {[%clk 0:01:11]} 10. Bb5 {[%clk 0:01:35]}  Bd7 {[%clk 0:01:11]} 11. Nge2 {[%clk 0:01:32]}  Be7 {[%clk 0:00:16]} 12. Bf2 {[%clk 0:01:21]}  O-O {[%clk 0:00:06]} 13. Qxd5 {[%clk 0:00:38]}  Qc8 {[%clk 0:00:06]} 14. g4 {[%clk 0:00:23]}  Rd8 {[%clk 0:00:05]} 15. gxh5 {[%clk 0:00:22]}  Nb4 {[%clk 0:00:04]} 16. Bxd7 {[%clk 0:00:17]}  Nc2+ {[%clk 0:00:04]} 17. Kf1 {[%clk 0:00:16]}  Rxd7 {[%clk 0:00:05]} 18. Qe4 {[%clk 0:00:15]}  Nxa1 {[%clk 0:00:05]} 19. Kg2 {[%clk 0:00:15]}  Rc7 {[%clk 0:00:04]} 20. Nd5 {[%clk 0:00:12]}  Rd7 {[%clk 0:00:03]} 21. Rxa1 {[%clk 0:00:13]}  Bf8 {[%clk 0:00:03]} 22. Rc1 {[%clk 0:00:10]}  Qd8 {[%clk 0:00:04]} 23. Nef4 {[%clk 0:00:09]}  Rc8 {[%clk 0:00:04]} 24. Rxc8 {[%clk 0:00:08]}  Qxc8 {[%clk 0:00:04]} 25. e6 {[%clk 0:00:08]}  fxe6 {[%clk 0:00:05]} 26. Qxe6+ {[%clk 0:00:09]}  Kh8 {[%clk 0:00:05]} 27. h6 {[%clk 0:00:09]}  Qd8 {[%clk 0:00:03]} 28. Bh4 {[%clk 0:00:05]}  Qc8 {[%clk 0:00:01]} 29. Bg3 {[%clk 0:00:04]}  Qd8 {[%clk 0:00:02]} 30. h4 {[%clk 0:00:03]}  Rd6 {[%clk 0:00:01]} 31. Qe5 {[%clk 0:00:00]}  Rxh6 {[%clk 0:00:01]} 0-1


[Site "https://www.chess.com"]

[Event "Titled Tuesday Blitz August 08 Early 2023"]
[White "Galchenko, Matvey"]
[Black "Hua, Lefong"]
[WhiteFideId "24175480"]
[BlackFideId "2602253"]
[WhiteElo "2877"]
[BlackElo "2666"]
[Result "1-0"]
[Round "3"]
[TimeControl "180+1"]
[Date "2023.08.08"]
[WhiteClock "0:00:02"]
[BlackClock "0:00:00"]
[Board "31"]

1. f4 {[%clk 0:02:56]}  g6 {[%clk 0:02:58]} 2. Nf3 {[%clk 0:02:56]}  Bg7 {[%clk 0:02:58]} 3. g3 {[%clk 0:02:57]}  c5 {[%clk 0:02:59]} 4. Bg2 {[%clk 0:02:58]}  Nc6 {[%clk 0:03:00]} 5. O-O {[%clk 0:02:58]}  d6 {[%clk 0:03:00]} 6. d3 {[%clk 0:02:59]}  Nf6 {[%clk 0:02:58]} 7. Nc3 {[%clk 0:03:00]}  O-O {[%clk 0:02:58]} 8. e4 {[%clk 0:03:00]}  Bg4 {[%clk 0:02:58]} 9. h3 {[%clk 0:03:01]}  Bxf3 {[%clk 0:02:59]} 10. Qxf3 {[%clk 0:03:02]}  Nd7 {[%clk 0:02:58]} 11. g4 {[%clk 0:03:02]}  Rb8 {[%clk 0:02:56]} 12. a4 {[%clk 0:03:02]}  Nd4 {[%clk 0:02:56]} 13. Qf2 {[%clk 0:03:01]}  b6 {[%clk 0:02:57]} 14. Be3 {[%clk 0:02:59]}  a6 {[%clk 0:02:56]} 15. Rae1 {[%clk 0:02:50]}  b5 {[%clk 0:02:55]} 16. axb5 {[%clk 0:02:51]}  axb5 {[%clk 0:02:56]} 17. h4 {[%clk 0:02:43]}  b4 {[%clk 0:02:55]} 18. Nd1 {[%clk 0:02:43]}  e6 {[%clk 0:02:34]} 19. g5 {[%clk 0:02:30]}  h5 {[%clk 0:02:30]} 20. f5 {[%clk 0:01:59]}  exf5 {[%clk 0:02:26]} 21. c3 {[%clk 0:01:59]}  bxc3 {[%clk 0:02:22]} 22. bxc3 {[%clk 0:02:00]}  Ne6 {[%clk 0:01:55]} 23. exf5 {[%clk 0:01:59]}  gxf5 {[%clk 0:01:55]} 24. Qxf5 {[%clk 0:01:57]}  Ne5 {[%clk 0:01:52]} 25. Be4 {[%clk 0:01:21]}  Ng6 {[%clk 0:01:48]} 26. Qf3 {[%clk 0:01:22]}  d5 {[%clk 0:01:35]} 27. Bxd5 {[%clk 0:01:14]}  Nxh4 {[%clk 0:01:36]} 28. Qh1 {[%clk 0:01:02]}  Nxg5 {[%clk 0:01:30]} 29. c4 {[%clk 0:00:28]}  Rb6 {[%clk 0:01:02]} 30. Rf4 {[%clk 0:00:19]}  Rg6 {[%clk 0:00:39]} 31. Kf1 {[%clk 0:00:19]}  Ngf3 {[%clk 0:00:26]} 32. Bxf3 {[%clk 0:00:10]}  Qxd3+ {[%clk 0:00:25]} 33. Be2 {[%clk 0:00:09]}  Qd6 {[%clk 0:00:14]} 34. Qxh4 {[%clk 0:00:08]}  Bh6 {[%clk 0:00:12]} 35. Rf3 {[%clk 0:00:05]}  Bxe3 {[%clk 0:00:09]} 36. Nxe3 {[%clk 0:00:06]}  Re8 {[%clk 0:00:07]} 37. Nf5 {[%clk 0:00:06]}  Qe5 {[%clk 0:00:07]} 38. Qxh5 {[%clk 0:00:05]}  Kf8 {[%clk 0:00:05]} 39. Qh4 {[%clk 0:00:02]}  Kg8 {[%clk 0:00:00]} 40. Bd3 {[%clk 0:00:02]} 1-0


[Site "https://www.chess.com"]

[Event "Titled Tuesday Blitz August 08 Early 2023"]
[White "Tsvetkov, Andrey"]
[Black "JeRoma71"]
[WhiteFideId "34139360"]
[WhiteElo "2613"]
[BlackElo "2829"]
[Result "0-1"]
[Round "3"]
[TimeControl "180+1"]
[Date "2023.08.08"]
[WhiteClock "0:00:04"]
[BlackClock "0:00:25"]
[Board "39"]

1. d4 {[%clk 0:03:00]}  g6 {[%clk 0:03:00]} 2. e4 {[%clk 0:02:58]}  Bg7 {[%clk 0:02:59]} 3. Nc3 {[%clk 0:02:58]}  c6 {[%clk 0:03:00]} 4. f4 {[%clk 0:02:57]}  d5 {[%clk 0:03:00]} 5. e5 {[%clk 0:02:58]}  Nh6 {[%clk 0:02:59]} 6. Be3 {[%clk 0:02:54]}  f6 {[%clk 0:02:58]} 7. Nf3 {[%clk 0:02:49]}  Bg4 {[%clk 0:02:57]} 8. Be2 {[%clk 0:02:47]}  O-O {[%clk 0:02:55]} 9. h3 {[%clk 0:02:44]}  Nf5 {[%clk 0:02:55]} 10. Bf2 {[%clk 0:02:44]}  Bxf3 {[%clk 0:02:54]} 11. Bxf3 {[%clk 0:02:45]}  fxe5 {[%clk 0:02:54]} 12. dxe5 {[%clk 0:02:38]}  e6 {[%clk 0:02:54]} 13. O-O {[%clk 0:02:25]}  Nd7 {[%clk 0:02:50]} 14. Ne2 {[%clk 0:02:21]}  g5 {[%clk 0:02:40]} 15. g4 {[%clk 0:02:13]}  Ne7 {[%clk 0:02:40]} 16. Nd4 {[%clk 0:02:11]}  Nc5 {[%clk 0:02:04]} 17. fxg5 {[%clk 0:02:08]}  Qd7 {[%clk 0:01:34]} 18. b4 {[%clk 0:02:02]}  Ne4 {[%clk 0:01:30]} 19. Bxe4 {[%clk 0:02:03]}  dxe4 {[%clk 0:01:31]} 20. Nf5 {[%clk 0:02:03]}  Qe8 {[%clk 0:01:25]} 21. Nxg7 {[%clk 0:01:44]}  Kxg7 {[%clk 0:01:24]} 22. Bc5 {[%clk 0:01:45]}  b6 {[%clk 0:01:14]} 23. Bd6 {[%clk 0:01:40]}  Rf7 {[%clk 0:01:06]} 24. Rf6 {[%clk 0:01:36]}  Nd5 {[%clk 0:01:03]} 25. c4 {[%clk 0:01:37]}  Nxf6 {[%clk 0:00:56]} 26. gxf6+ {[%clk 0:01:22]}  Kh8 {[%clk 0:00:56]} 27. Qe2 {[%clk 0:01:23]}  c5 {[%clk 0:00:51]} 28. b5 {[%clk 0:01:11]}  a6 {[%clk 0:00:50]} 29. a4 {[%clk 0:00:53]}  axb5 {[%clk 0:00:49]} 30. cxb5 {[%clk 0:00:54]}  Rfa7 {[%clk 0:00:46]} 31. Qxe4 {[%clk 0:00:53]}  Qg6 {[%clk 0:00:46]} 32. Re1 {[%clk 0:00:33]}  Qxe4 {[%clk 0:00:39]} 33. Rxe4 {[%clk 0:00:33]}  Kg8 {[%clk 0:00:39]} 34. f7+ {[%clk 0:00:12]}  Kxf7 {[%clk 0:00:31]} 35. Rf4+ {[%clk 0:00:12]}  Kg7 {[%clk 0:00:31]} 36. Rf6 {[%clk 0:00:13]}  Rxa4 {[%clk 0:00:31]} 37. Rxe6 {[%clk 0:00:13]}  Ra2 {[%clk 0:00:30]} 38. Be7 {[%clk 0:00:09]}  Rc2 {[%clk 0:00:29]} 39. Bf6+ {[%clk 0:00:09]}  Kf7 {[%clk 0:00:25]} 40. Re7+ {[%clk 0:00:04]}  Kf8 {[%clk 0:00:25]} 0-1


[Site "https://www.chess.com"]

[Event "Titled Tuesday Blitz August 08 Early 2023"]
[White "Pakleza, Zbigniew"]
[Black "banhgiahuy2606"]
[WhiteFideId "1119290"]
[WhiteElo "2823"]
[BlackElo "2599"]
[Result "1-0"]
[Round "3"]
[TimeControl "180+1"]
[Date "2023.08.08"]
[WhiteClock "0:00:04"]
[BlackClock "0:00:28"]
[Board "41"]

1. d4 {[%clk 0:03:00]}  Nf6 {[%clk 0:02:59]} 2. Nf3 {[%clk 0:03:00]}  d5 {[%clk 0:02:58]} 3. Bf4 {[%clk 0:03:00]}  e6 {[%clk 0:02:55]} 4. e3 {[%clk 0:03:01]}  Bd6 {[%clk 0:02:54]} 5. Bg3 {[%clk 0:03:01]}  O-O {[%clk 0:02:51]} 6. Nbd2 {[%clk 0:03:01]}  c5 {[%clk 0:02:50]} 7. c3 {[%clk 0:03:02]}  Qc7 {[%clk 0:02:50]} 8. Be2 {[%clk 0:02:59]}  Nbd7 {[%clk 0:02:50]} 9. c4 {[%clk 0:03:00]}  cxd4 {[%clk 0:02:48]} 10. Nxd4 {[%clk 0:03:01]}  Bxg3 {[%clk 0:02:45]} 11. hxg3 {[%clk 0:03:02]}  dxc4 {[%clk 0:02:45]} 12. Nxc4 {[%clk 0:03:02]}  a6 {[%clk 0:02:42]} 13. Rc1 {[%clk 0:02:54]}  b5 {[%clk 0:02:41]} 14. Nd2 {[%clk 0:02:54]}  Qb6 {[%clk 0:02:39]} 15. g4 {[%clk 0:02:25]}  h6 {[%clk 0:02:26]} 16. Bf3 {[%clk 0:02:20]}  Bb7 {[%clk 0:02:26]} 17. Bxb7 {[%clk 0:02:19]}  Qxb7 {[%clk 0:02:27]} 18. Nc6 {[%clk 0:02:19]}  Nb6 {[%clk 0:02:21]} 19. Qf3 {[%clk 0:01:59]}  Rfc8 {[%clk 0:02:13]} 20. Ke2 {[%clk 0:01:11]}  Nc4 {[%clk 0:02:06]} 21. g5 {[%clk 0:00:54]}  hxg5 {[%clk 0:01:51]} 22. Qh3 {[%clk 0:00:39]}  Kf8 {[%clk 0:01:52]} 23. Qh8+ {[%clk 0:00:22]}  Ng8 {[%clk 0:01:51]} 24. Rh7 {[%clk 0:00:18]}  f6 {[%clk 0:01:27]} 25. Nd4 {[%clk 0:00:10]}  Re8 {[%clk 0:01:15]} 26. Ne4 {[%clk 0:00:08]}  Qf7 {[%clk 0:01:09]} 27. Nc5 {[%clk 0:00:08]}  Ra7 {[%clk 0:01:00]} 28. Rxg7 {[%clk 0:00:06]}  Qxg7 {[%clk 0:00:45]} 29. Ncxe6+ {[%clk 0:00:07]}  Rxe6 {[%clk 0:00:38]} 30. Nxe6+ {[%clk 0:00:08]}  Ke8 {[%clk 0:00:37]} 31. Nxg7+ {[%clk 0:00:07]}  Kf7 {[%clk 0:00:37]} 32. Nf5 {[%clk 0:00:06]}  Rd7 {[%clk 0:00:36]} 33. b3 {[%clk 0:00:03]}  Ne5 {[%clk 0:00:34]} 34. Qg7+ {[%clk 0:00:03]}  Ke6 {[%clk 0:00:34]} 35. Nd4+ {[%clk 0:00:03]}  Rxd4 {[%clk 0:00:30]} 36. Qxg8+ {[%clk 0:00:03]}  Kf5 {[%clk 0:00:28]} 37. exd4 {[%clk 0:00:04]} 1-0


[Site "https://www.chess.com"]

[Event "Titled Tuesday Blitz August 08 Early 2023"]
[White "Zavgorodniy, Sergiy"]
[Black "Mitrabha, Guha"]
[WhiteFideId "14110148"]
[BlackFideId "5057000"]
[WhiteElo "2594"]
[BlackElo "2822"]
[Result "1-0"]
[Round "3"]
[TimeControl "180+1"]
[Date "2023.08.08"]
[WhiteClock "0:00:16"]
[BlackClock "0:00:22"]
[Board "42"]

1. e4 {[%clk 0:03:00]}  c6 {[%clk 0:02:59]} 2. d4 {[%clk 0:02:59]}  d5 {[%clk 0:02:57]} 3. exd5 {[%clk 0:03:00]}  cxd5 {[%clk 0:02:56]} 4. c4 {[%clk 0:03:00]}  Nf6 {[%clk 0:02:56]} 5. Nc3 {[%clk 0:03:00]}  Nc6 {[%clk 0:02:55]} 6. Nf3 {[%clk 0:03:00]}  Be6 {[%clk 0:02:55]} 7. c5 {[%clk 0:02:53]}  g6 {[%clk 0:02:50]} 8. Bb5 {[%clk 0:02:52]}  Bg7 {[%clk 0:02:50]} 9. Ne5 {[%clk 0:02:40]}  Rc8 {[%clk 0:02:46]} 10. Qa4 {[%clk 0:02:34]}  Bd7 {[%clk 0:02:44]} 11. O-O {[%clk 0:02:11]}  O-O {[%clk 0:02:36]} 12. Nxd7 {[%clk 0:01:59]}  Qxd7 {[%clk 0:02:35]} 13. Re1 {[%clk 0:01:57]}  a6 {[%clk 0:02:34]} 14. Bxc6 {[%clk 0:01:51]}  Rxc6 {[%clk 0:02:14]} 15. h3 {[%clk 0:01:22]}  Rd8 {[%clk 0:02:01]} 16. Bf4 {[%clk 0:01:19]}  b6 {[%clk 0:01:56]} 17. b4 {[%clk 0:01:14]}  Ne4 {[%clk 0:01:42]} 18. Nxe4 {[%clk 0:01:04]}  dxe4 {[%clk 0:01:38]} 19. d5 {[%clk 0:00:53]}  Qxd5 {[%clk 0:00:57]} 20. Rad1 {[%clk 0:00:50]}  Bd4 {[%clk 0:00:57]} 21. Rxd4 {[%clk 0:00:46]}  Qxd4 {[%clk 0:00:58]} 22. Qxc6 {[%clk 0:00:46]}  Qxb4 {[%clk 0:00:58]} 23. Qxe4 {[%clk 0:00:39]}  bxc5 {[%clk 0:00:55]} 24. Qxb4 {[%clk 0:00:36]}  cxb4 {[%clk 0:00:55]} 25. Rxe7 {[%clk 0:00:36]}  a5 {[%clk 0:00:34]} 26. Ra7 {[%clk 0:00:34]}  Rd5 {[%clk 0:00:34]} 27. Bh6 {[%clk 0:00:33]}  f6 {[%clk 0:00:35]} 28. Rg7+ {[%clk 0:00:32]}  Kh8 {[%clk 0:00:35]} 29. Rf7 {[%clk 0:00:33]}  Rd8 {[%clk 0:00:35]} 30. Ra7 {[%clk 0:00:29]}  Kg8 {[%clk 0:00:34]} 31. Rxa5 {[%clk 0:00:27]}  Kf7 {[%clk 0:00:34]} 32. Be3 {[%clk 0:00:26]}  Rb8 {[%clk 0:00:34]} 33. g4 {[%clk 0:00:25]}  g5 {[%clk 0:00:34]} 34. Ra7+ {[%clk 0:00:25]}  Kg6 {[%clk 0:00:34]} 35. Ra6 {[%clk 0:00:25]}  Rd8 {[%clk 0:00:33]} 36. Rb6 {[%clk 0:00:25]}  Ra8 {[%clk 0:00:34]} 37. Rxb4 {[%clk 0:00:22]}  Rxa2 {[%clk 0:00:33]} 38. Rb6 {[%clk 0:00:23]}  Ra4 {[%clk 0:00:34]} 39. Rd6 {[%clk 0:00:22]}  Kf7 {[%clk 0:00:30]} 40. Bd4 {[%clk 0:00:22]}  Ke7 {[%clk 0:00:30]} 41. Rxf6 {[%clk 0:00:20]}  Rxd4 {[%clk 0:00:30]} 42. Rh6 {[%clk 0:00:20]}  Kf7 {[%clk 0:00:28]} 43. Rxh7+ {[%clk 0:00:20]}  Kg6 {[%clk 0:00:29]} 44. Ra7 {[%clk 0:00:21]}  Rd3 {[%clk 0:00:30]} 45. Kg2 {[%clk 0:00:21]}  Rb3 {[%clk 0:00:30]} 46. Re7 {[%clk 0:00:21]}  Kf6 {[%clk 0:00:30]} 47. Re3 {[%clk 0:00:21]}  Rb2 {[%clk 0:00:31]} 48. Rf3+ {[%clk 0:00:22]}  Kg6 {[%clk 0:00:31]} 49. Kg3 {[%clk 0:00:22]}  Rb1 {[%clk 0:00:32]} 50. Rd3 {[%clk 0:00:22]}  Kf6 {[%clk 0:00:31]} 51. Rd6+ {[%clk 0:00:20]}  Kf7 {[%clk 0:00:31]} 52. f3 {[%clk 0:00:19]}  Rg1+ {[%clk 0:00:29]} 53. Kf2 {[%clk 0:00:17]}  Rh1 {[%clk 0:00:30]} 54. Kg2 {[%clk 0:00:17]}  Ra1 {[%clk 0:00:30]} 55. Rd2 {[%clk 0:00:18]}  Kf6 {[%clk 0:00:30]} 56. Kg3 {[%clk 0:00:18]}  Rg1+ {[%clk 0:00:30]} 57. Rg2 {[%clk 0:00:19]}  Rh1 {[%clk 0:00:29]} 58. Rh2 {[%clk 0:00:17]}  Rg1+ {[%clk 0:00:30]} 59. Kf2 {[%clk 0:00:18]}  Ra1 {[%clk 0:00:30]} 60. h4 {[%clk 0:00:18]}  Kg6 {[%clk 0:00:24]} 61. hxg5 {[%clk 0:00:18]}  Kxg5 {[%clk 0:00:25]} 62. Rh5+ {[%clk 0:00:18]}  Kg6 {[%clk 0:00:26]} 63. Rb5 {[%clk 0:00:18]}  Rc1 {[%clk 0:00:25]} 64. Kg3 {[%clk 0:00:18]}  Kf6 {[%clk 0:00:26]} 65. Rb4 {[%clk 0:00:17]}  Kg5 {[%clk 0:00:26]} 66. f4+ {[%clk 0:00:16]}  Kf6 {[%clk 0:00:26]} 67. Rb6+ {[%clk 0:00:16]}  Kf7 {[%clk 0:00:27]} 68. g5 {[%clk 0:00:16]}  Rg1+ {[%clk 0:00:27]} 69. Kf3 {[%clk 0:00:17]}  Ra1 {[%clk 0:00:25]} 70. Kg4 {[%clk 0:00:17]}  Ke7 {[%clk 0:00:25]} 71. Rb7+ {[%clk 0:00:17]}  Ke6 {[%clk 0:00:24]} 72. f5+ {[%clk 0:00:17]}  Ke5 {[%clk 0:00:25]} 73. Re7+ {[%clk 0:00:17]}  Kd6 {[%clk 0:00:26]} 74. Re2 {[%clk 0:00:17]}  Rh1 {[%clk 0:00:25]} 75. g6 {[%clk 0:00:16]}  Rf1 {[%clk 0:00:22]} 76. Kg5 {[%clk 0:00:16]} 1-0


[Site "https://www.chess.com"]

[Event "Titled Tuesday Blitz August 08 Early 2023"]
[White "Colbow, Collin"]
[Black "Anuj Shrivatri"]
[WhiteFideId "16201132"]
[BlackFideId "35070924"]
[WhiteElo "2581"]
[BlackElo "2821"]
[Result "0-1"]
[Round "3"]
[TimeControl "180+1"]
[Date "2023.08.08"]
[WhiteClock "0:00:20"]
[BlackClock "0:01:56"]
[Board "44"]

1. d4 {[%clk 0:03:00]}  d5 {[%clk 0:02:52]} 2. Bf4 {[%clk 0:03:00]}  Nf6 {[%clk 0:02:46]} 3. Nf3 {[%clk 0:03:00]}  c5 {[%clk 0:02:40]} 4. e3 {[%clk 0:03:00]}  Nc6 {[%clk 0:02:41]} 5. Nbd2 {[%clk 0:02:58]}  e6 {[%clk 0:02:36]} 6. c3 {[%clk 0:02:57]}  cxd4 {[%clk 0:02:37]} 7. exd4 {[%clk 0:02:57]}  Nh5 {[%clk 0:02:37]} 8. Bg5 {[%clk 0:02:49]}  f6 {[%clk 0:02:36]} 9. Bh4 {[%clk 0:02:49]}  Bd6 {[%clk 0:02:34]} 10. Bd3 {[%clk 0:02:48]}  Nf4 {[%clk 0:02:32]} 11. Bf1 {[%clk 0:02:47]}  O-O {[%clk 0:02:28]} 12. Bg3 {[%clk 0:02:45]}  Re8 {[%clk 0:02:24]} 13. Bxf4 {[%clk 0:02:44]}  Bxf4 {[%clk 0:02:24]} 14. Be2 {[%clk 0:02:44]}  e5 {[%clk 0:02:25]} 15. dxe5 {[%clk 0:02:41]}  fxe5 {[%clk 0:02:26]} 16. O-O {[%clk 0:02:41]}  e4 {[%clk 0:02:26]} 17. Nd4 {[%clk 0:02:40]}  Nxd4 {[%clk 0:02:11]} 18. cxd4 {[%clk 0:02:41]}  Qg5 {[%clk 0:02:12]} 19. Nb1 {[%clk 0:02:22]}  Bh3 {[%clk 0:02:11]} 20. g3 {[%clk 0:02:22]}  e3 {[%clk 0:02:05]} 21. Bf3 {[%clk 0:00:48]}  exf2+ {[%clk 0:01:55]} 22. Rxf2 {[%clk 0:00:49]}  Bxg3 {[%clk 0:01:55]} 23. hxg3 {[%clk 0:00:40]}  Qxg3+ {[%clk 0:01:56]} 24. Bg2 {[%clk 0:00:20]}  Bxg2 {[%clk 0:01:56]} 0-1


[Site "https://www.chess.com"]

[Event "Titled Tuesday Blitz August 08 Early 2023"]
[White "Christiansen, Johan-Sebastian"]
[Black "Aarav Dengla"]
[WhiteFideId "1512668"]
[BlackFideId "45059756"]
[WhiteElo "2812"]
[BlackElo "2551"]
[Result "1-0"]
[Round "3"]
[TimeControl "180+1"]
[Date "2023.08.08"]
[WhiteClock "0:00:16"]
[BlackClock "0:00:03"]
[Board "48"]

1. e4 {[%clk 0:02:56]}  c5 {[%clk 0:02:58]} 2. Nf3 {[%clk 0:02:56]}  d6 {[%clk 0:02:57]} 3. Nc3 {[%clk 0:02:53]}  Nf6 {[%clk 0:02:57]} 4. e5 {[%clk 0:02:54]}  dxe5 {[%clk 0:02:56]} 5. Nxe5 {[%clk 0:02:55]}  Nbd7 {[%clk 0:02:55]} 6. d4 {[%clk 0:02:55]}  Nxe5 {[%clk 0:02:44]} 7. dxe5 {[%clk 0:02:56]}  Qxd1+ {[%clk 0:02:44]} 8. Kxd1 {[%clk 0:02:56]}  Ng4 {[%clk 0:02:43]} 9. Bb5+ {[%clk 0:02:57]}  Bd7 {[%clk 0:02:43]} 10. e6 {[%clk 0:02:49]}  Bxb5 {[%clk 0:01:40]} 11. Nxb5 {[%clk 0:02:50]}  O-O-O+ {[%clk 0:01:28]} 12. Ke2 {[%clk 0:02:49]}  a6 {[%clk 0:01:29]} 13. Nc3 {[%clk 0:02:40]}  fxe6 {[%clk 0:01:26]} 14. h3 {[%clk 0:02:21]}  Nf6 {[%clk 0:01:08]} 15. Be3 {[%clk 0:02:11]}  b6 {[%clk 0:01:03]} 16. Na4 {[%clk 0:02:01]}  Nd5 {[%clk 0:00:52]} 17. c4 {[%clk 0:01:52]}  Nxe3 {[%clk 0:00:51]} 18. fxe3 {[%clk 0:01:53]}  Kc7 {[%clk 0:00:41]} 19. Rhf1 {[%clk 0:01:35]}  g6 {[%clk 0:00:31]} 20. Rf7 {[%clk 0:01:34]}  h5 {[%clk 0:00:30]} 21. Raf1 {[%clk 0:01:25]}  Rg8 {[%clk 0:00:29]} 22. Rh7 {[%clk 0:01:04]}  Bg7 {[%clk 0:00:21]} 23. Rf7 {[%clk 0:01:03]}  Bf8 {[%clk 0:00:16]} 24. Nc3 {[%clk 0:00:44]}  Kd7 {[%clk 0:00:09]} 25. Ne4 {[%clk 0:00:44]}  Ke8 {[%clk 0:00:09]} 26. Ng5 {[%clk 0:00:40]}  Rd6 {[%clk 0:00:10]} 27. b3 {[%clk 0:00:33]}  b5 {[%clk 0:00:10]} 28. Ne4 {[%clk 0:00:30]}  Rc6 {[%clk 0:00:09]} 29. a4 {[%clk 0:00:24]}  bxa4 {[%clk 0:00:08]} 30. bxa4 {[%clk 0:00:24]}  Bh6 {[%clk 0:00:08]} 31. Rxe7+ {[%clk 0:00:22]}  Kd8 {[%clk 0:00:08]} 32. Rd7+ {[%clk 0:00:19]}  Ke8 {[%clk 0:00:03]} 33. Nf6+ {[%clk 0:00:16]} 1-0


[Site "https://www.chess.com"]